[Event "NJSK 2024 C"]
[Site "Groningen, Netherlands"]
[Date "2024.04.28"]
[Round "2.13"]
[White "Etienne, Ghilon"]
[Black "Van Haaften, Jelle"]
[Result "1-0"]
[TimeControl "90min/40moves + 30min + 30sec/move"]
[WhiteElo "1793"]
[BlackElo "1655"]

1. e4 {[%clk 01:30:47]} {[%emt 00:00:12]} c6 {[%clk 01:30:58]} {[%emt
00:00:02]} 2. Nc3 {[%clk 01:31:11]} {[%emt 00:00:07]} d5 {[%clk 01:31:19]}
{[%emt 00:00:08]} 3. Nf3 {[%clk 01:31:37]} {[%emt 00:00:05]} Bg4 {[%clk
01:31:40]} {[%emt 00:00:08]} 4. h3 {[%clk 01:32:01]} {[%emt 00:00:06]} Bxf3
{[%clk 01:32:04]} {[%emt 00:00:06]} 5. Qxf3 {[%clk 01:32:25]} {[%emt 00:00:07]}
Nf6 {[%clk 01:32:24]} {[%emt 00:00:09]} 6. e5 {[%clk 01:32:06]} {[%emt
00:00:50]} Nfd7 {[%clk 01:32:46]} {[%emt 00:00:08]} 7. d4 {[%clk 01:32:28]}
{[%emt 00:00:08]} e6 {[%clk 01:33:09]} {[%emt 00:00:06]} 8. Nd1 {[%clk
01:28:59]} {[%emt 00:04:01]} c5 {[%clk 01:32:33]} {[%emt 00:01:05]} 9. c3
{[%clk 01:29:24]} {[%emt 00:00:05]} Nc6 {[%clk 01:30:21]} {[%emt 00:02:40]} 10.
Be3 {[%clk 01:27:23]} {[%emt 00:02:32]} Qa5 {[%clk 01:22:58]} {[%emt 00:07:53]}
11. Qf4 {[%clk 01:18:57]} {[%emt 00:08:57]} Be7 {[%clk 01:14:55]} {[%emt
00:08:31]} 12. h4 {[%clk 01:12:12]} {[%emt 00:07:16]} Qb6 {[%clk 01:08:21]}
{[%emt 00:07:03]} 13. Rc1 {[%clk 00:55:42]} {[%emt 00:17:01]} a6 {[%clk
00:54:19]} {[%emt 00:14:31]} 14. Be2 {[%clk 00:50:50]} {[%emt 00:05:23]} Qa5
{[%emt 00:05:38]} 15. O-O {[%clk 00:28:30]} {[%emt 00:22:49]} Qxa2 {[%clk
00:46:27]} {[%emt 00:03:16]} 16. Qg4 {[%clk 00:19:56]} {[%emt 00:09:04]} Bf8
{[%clk 00:41:26]} {[%emt 00:05:30]} 17. f4 {[%clk 00:20:18]} {[%emt 00:00:09]}
h5 {[%clk 00:40:57]} {[%emt 00:00:58]} 18. Qg3 {[%clk 00:16:59]} {[%emt
00:03:49]} Ne7 {[%clk 00:34:19]} {[%emt 00:07:09]} 19. Bd3 {[%clk 00:16:39]}
{[%emt 00:00:50]} c4 {[%clk 00:31:19]} {[%emt 00:03:30]} 20. Bc2 {[%clk
00:16:41]} {[%emt 00:00:28]} g6 {[%clk 00:31:08]} {[%emt 00:00:41]} 21. Rf2
{[%clk 00:13:55]} {[%emt 00:03:16]} Bh6 {[%clk 00:28:52]} {[%emt 00:02:46]} 22.
b4 {[%clk 00:13:28]} {[%emt 00:00:57]} cxb3 {[%clk 00:22:31]} {[%emt 00:06:51]}
23. Bxg6 {[%clk 00:13:46]} {[%emt 00:00:11]} Qa3 {[%clk 00:20:34]} {[%emt
00:02:28]} 24. Bxh5 {[%clk 00:12:22]} {[%emt 00:01:54]} Nf5 {[%clk 00:19:15]}
{[%emt 00:01:48]} 25. Qh3 {[%emt 00:01:03]} Bf8 {[%clk 00:18:52]} 26. g4 {[%clk
00:12:17]} {[%emt 00:00:56]} Nxe3 {[%clk 00:15:17]} {[%emt 00:04:04]} 27. Qxe3
{[%clk 00:12:46]} {[%emt 00:00:02]} Nb6 {[%clk 00:15:30]} {[%emt 00:00:16]} 28.
Rb1 {[%emt 00:03:49]} Nc4 {[%clk 00:15:32]} 29. Qe2 {[%clk 00:09:51]} {[%emt
00:00:34]} a5 {[%clk 00:14:15]} {[%emt 00:01:48]} 30. f5 {[%clk 00:07:44]}
{[%emt 00:02:37]} O-O-O {[%clk 00:11:55]} {[%emt 00:02:50]} 31. Bxf7 {[%clk
00:04:28]} {[%emt 00:03:46]} exf5 {[%clk 00:12:05]} {[%emt 00:00:19]} 32. Rxf5
{[%clk 00:03:19]} {[%emt 00:01:39]} Rxh4 {[%clk 00:11:39]} {[%emt 00:00:56]} 33.
Bxd5 {[%clk 00:03:19]} {[%emt 00:00:31]} Qa2 {[%clk 00:09:40]} {[%emt
00:02:29]} 34. Qxc4+ {[%clk 00:02:42]} {[%emt 00:01:06]} Kb8 {[%clk 00:09:34]}
{[%emt 00:00:36]} 35. Rb2 {[%clk 00:02:59]} {[%emt 00:00:13]} Rxg4+ {[%clk
00:09:24]} {[%emt 00:00:40]} 36. Kf1 {[%clk 00:03:16]} {[%emt 00:00:14]} Qa1
{[%clk 00:08:56]} {[%emt 00:00:58]} 37. Qxb3 {[%clk 00:03:38]} {[%emt
00:00:08]} Rg7 {[%clk 00:08:38]} {[%emt 00:00:48]} 38. Bxb7 {[%clk 00:03:43]}
{[%emt 00:00:25]} a4 {[%clk 00:08:14]} {[%emt 00:00:54]} 39. Qxa4 {[%clk
00:03:09]} {[%emt 00:01:04]} Ba3 {[%clk 00:05:56]} {[%emt 00:02:48]} 40. Qa8+
{[%clk 00:01:56]} {[%emt 00:01:43]} Kc7 {[%clk 00:06:03]} {[%emt 00:00:21]} 41.
Qa5+ {[%clk 00:02:23]} {[%emt 00:00:04]} Kd7 {[%clk 00:06:01]} {[%emt
00:00:33]} 42. Qa4+ {[%clk 00:01:12]} {[%emt 00:01:41]} Ke7 {[%clk 00:04:07]}
{[%emt 00:02:23]} 43. Rbf2 {[%clk 00:00:36]} {[%emt 00:01:06]} Rdg8 {[%clk
00:03:02]} {[%emt 00:01:36]} 44. Bg2 {[%clk 00:01:03]} {[%emt 00:00:03]} Rd8
{[%clk 00:02:17]} {[%emt 00:01:15]} 45. Qa7+ {[%clk 00:01:10]} {[%emt
00:00:23]} Rd7 {[%clk 00:02:21]} {[%emt 00:00:26]} 46. Rf7+ {[%clk 00:01:35]}
{[%emt 00:00:05]} Rxf7 {[%clk 00:02:26]} {[%emt 00:00:25]} 47. Rxf7+ {[%clk
00:02:00]} {[%emt 00:00:05]} Kxf7 {[%clk 00:02:46]} {[%emt 00:00:09]} 48. Qxd7+
{[%clk 00:02:26]} {[%emt 00:00:04]} Be7 {[%clk 00:03:09]} {[%emt 00:00:07]} 49.
Bd5+ {[%clk 00:02:42]} {[%emt 00:00:15]} Kg6 {[%clk 00:03:08]} {[%emt
00:00:31]} 50. Qe6+ {[%clk 00:02:46]} {[%emt 00:00:26]} Kh5 {[%clk 00:03:07]}
{[%emt 00:00:31]} 51. Bf3+ {[%clk 00:03:11]} {[%emt 00:00:05]} 1-0

[Event "NJSK 2024 C"]
[Site "Groningen, Netherlands"]
[Date "2024.04.28"]
[Round "2.14"]
[White "Stylianou, Alexandros"]
[Black "Lalkota, Sai Pranav Tejas"]
[Result "0-1"]
[TimeControl "90min/40moves + 30min + 30sec/move"]
[WhiteElo "1642"]
[BlackElo "1782"]

1. d4 {[%clk 01:30:58]} {[%emt 00:00:02]} Nf6 {[%clk 01:30:54]} {[%emt
00:00:06]} 2. c4 {[%clk 01:31:17]} {[%emt 00:00:11]} c5 {[%clk 01:31:17]}
{[%emt 00:00:07]} 3. d5 {[%clk 01:31:10]} {[%emt 00:00:37]} b5 {[%clk
01:31:37]} {[%emt 00:00:10]} 4. b3 {[%clk 01:30:51]} {[%emt 00:00:49]} g6
{[%clk 01:31:59]} {[%emt 00:00:07]} 5. Bb2 {[%clk 01:30:53]} {[%emt 00:00:28]}
Bg7 {[%clk 01:32:19]} {[%emt 00:00:10]} 6. Nf3 {[%clk 01:30:30]} {[%emt
00:00:54]} O-O {[%clk 01:32:18]} {[%emt 00:00:31]} 7. Nbd2 {[%clk 01:30:31]}
{[%emt 00:00:29]} bxc4 {[%clk 01:32:13]} {[%emt 00:00:35]} 8. Nxc4 {[%clk
01:29:49]} {[%emt 00:01:12]} Bb7 {[%clk 01:31:37]} {[%emt 00:01:06]} 9. d6
{[%clk 01:23:51]} {[%emt 00:06:27]} exd6 {[%clk 01:28:21]} {[%emt 00:03:46]} 10.
Nxd6 {[%clk 01:22:41]} {[%emt 00:01:40]} Bxf3 {[%clk 01:28:41]} {[%emt
00:00:09]} 11. exf3 {[%clk 01:22:22]} {[%emt 00:00:49]} Nc6 {[%clk 01:22:58]}
{[%emt 00:06:13]} 12. Be2 {[%clk 01:21:55]} {[%emt 00:00:58]} Ne8 {[%clk
01:22:38]} {[%emt 00:00:50]} 13. Bxg7 {[%clk 01:21:53]} {[%emt 00:00:31]} Kxg7
{[%clk 01:22:49]} {[%emt 00:00:19]} 14. Nxe8+ {[%clk 01:21:24]} {[%emt
00:00:59]} Rxe8 {[%clk 01:23:18]} {[%emt 00:00:02]} 15. O-O {[%clk 01:21:37]}
{[%emt 00:00:17]} Nd4 {[%clk 01:22:50]} {[%emt 00:00:58]} 16. Re1 {[%clk
01:20:44]} {[%emt 00:01:23]} Qc7 {[%clk 01:21:50]} {[%emt 00:01:30]} 17. Rc1
{[%clk 01:18:35]} {[%emt 00:02:39]} Rac8 {[%clk 01:20:07]} {[%emt 00:02:13]} 18.
Qd2 {[%clk 01:18:13]} {[%emt 00:00:52]} Qd6 {[%clk 01:16:56]} {[%emt 00:03:40]}
19. Qc3 {[%clk 01:17:33]} {[%emt 00:01:10]} Qf6 {[%clk 01:16:42]} {[%emt
00:00:45]} 20. Qd2 {[%clk 01:15:19]} {[%emt 00:02:44]} Qd6 {[%clk 01:15:31]}
{[%emt 00:01:41]} 21. Rcd1 {[%clk 01:14:11]} {[%emt 00:01:37]} Re7 {[%clk
01:13:09]} {[%emt 00:02:53]} 22. Qc3 {[%clk 01:11:41]} {[%emt 00:02:59]} Qf6
{[%clk 01:13:08]} {[%emt 00:00:31]} 23. Kf1 {[%clk 01:09:21]} {[%emt 00:02:50]}
Rce8 {[%clk 01:12:20]} {[%emt 00:01:18]} 24. Bc4 {[%clk 01:04:52]} {[%emt
00:04:59]} h6 {[%clk 01:07:16]} {[%emt 00:05:34]} 25. Rxe7 {[%clk 00:58:04]}
{[%emt 00:07:17]} Qxe7 {[%clk 01:07:20]} {[%emt 00:00:27]} 26. Re1 {[%clk
00:51:18]} {[%emt 00:07:16]} Qxe1+ {[%clk 01:07:43]} {[%emt 00:00:07]} 27. Qxe1
{[%clk 00:51:39]} {[%emt 00:00:09]} Rxe1+ {[%clk 01:08:00]} {[%emt 00:00:13]}
28. Kxe1 {[%clk 00:52:07]} {[%emt 00:00:02]} f5 {[%clk 01:07:47]} {[%emt
00:00:43]} 29. Bd3 {[%clk 00:51:56]} {[%emt 00:00:42]} f4 {[%clk 01:07:48]}
{[%emt 00:00:28]} 30. Kd2 {[%clk 00:51:47]} {[%emt 00:00:39]} Kf6 {[%clk
01:08:07]} {[%emt 00:00:10]} 31. Kc3 {[%clk 00:51:07]} {[%emt 00:01:11]} Nc6
{[%clk 01:07:57]} {[%emt 00:00:40]} 32. a3 {[%emt 00:00:34]} a5 {[%clk
01:07:47]} {[%emt 00:00:38]} 33. g4 {[%clk 00:45:23]} {[%emt 00:06:11]} g5
{[%clk 01:07:51]} {[%emt 00:00:26]} 34. Bf5 {[%clk 00:43:38]} {[%emt 00:02:16]}
d5 {[%clk 01:07:59]} {[%emt 00:00:20]} 35. Kd3 {[%clk 00:41:05]} {[%emt
00:03:05]} Nd4 {[%clk 01:08:15]} {[%emt 00:00:14]} 36. b4 {[%clk 00:36:51]}
{[%emt 00:04:44]} Nxf5 {[%clk 01:07:21]} {[%emt 00:01:24]} 37. bxa5 {[%clk
00:36:40]} {[%emt 00:00:42]} Ne7 {[%clk 01:07:27]} {[%emt 00:00:24]} 0-1

[Event "NJSK 2024 C"]
[Site "Groningen, Netherlands"]
[Date "2024.04.29"]
[Round "3.1"]
[White "Chua, Ethan"]
[Black "Kurt, Sascha"]
[Result "1/2-1/2"]
[TimeControl "90min/40moves + 30min + 30sec/move"]
[WhiteElo "2000"]
[BlackElo "2096"]

1. e4 {[%clk 01:30:48]} {[%emt 00:00:11]} c5 {[%clk 01:30:56]} {[%emt
00:00:05]} 2. Nf3 {[%clk 01:31:15]} {[%emt 00:00:04]} d6 {[%emt 00:00:06]} 3.
d4 {[%clk 01:31:41]} cxd4 {[%clk 01:31:50]} {[%emt 00:00:04]} 4. Nxd4 {[%clk
01:32:07]} {[%emt 00:00:04]} Nf6 {[%clk 01:32:15]} {[%emt 00:00:04]} 5. Nc3
{[%clk 01:32:33]} {[%emt 00:00:04]} a6 {[%clk 01:32:25]} {[%emt 00:00:20]} 6.
f3 {[%clk 01:32:58]} {[%emt 00:00:05]} e5 {[%clk 01:32:51]} {[%emt 00:00:04]} 7.
Nb3 {[%clk 01:33:24]} {[%emt 00:00:04]} Be6 {[%clk 01:33:13]} {[%emt 00:00:08]}
8. Be3 {[%clk 01:33:50]} {[%emt 00:00:04]} Be7 {[%clk 01:33:38]} {[%emt
00:00:05]} 9. Qd2 {[%clk 01:34:16]} {[%emt 00:00:04]} h5 {[%emt 00:00:13]} 10.
O-O-O {[%clk 01:34:38]} {[%emt 00:00:05]} Nbd7 {[%clk 01:34:15]} {[%emt
00:00:13]} 11. Kb1 {[%clk 01:34:47]} {[%emt 00:00:21]} Rc8 {[%clk 01:34:35]}
{[%emt 00:00:10]} 12. Nd5 {[%clk 01:33:37]} {[%emt 00:01:40]} Nxd5 {[%clk
01:33:45]} {[%emt 00:01:20]} 13. exd5 {[%clk 01:34:02]} {[%emt 00:00:05]} Bf5
{[%clk 01:34:07]} {[%emt 00:00:08]} 14. Bd3 {[%clk 01:34:20]} {[%emt 00:00:12]}
Bxd3 {[%clk 01:34:31]} {[%emt 00:00:07]} 15. Qxd3 {[%clk 01:34:45]} {[%emt
00:00:04]} Bg5 {[%clk 01:34:21]} {[%emt 00:00:41]} 16. h4 {[%clk 01:35:09]}
{[%emt 00:00:05]} Bxe3 {[%clk 01:32:21]} {[%emt 00:02:31]} 17. Qxe3 {[%clk
01:35:14]} {[%emt 00:00:24]} Qc7 {[%clk 01:32:03]} {[%emt 00:00:48]} 18. Qe2
{[%clk 01:34:19]} {[%emt 00:01:24]} Qc4 {[%clk 01:27:52]} {[%emt 00:04:42]} 19.
Qxc4 {[%clk 01:32:20]} {[%emt 00:02:28]} 1/2-1/2

[Event "NJSK 2024 C"]
[Site "Groningen, Netherlands"]
[Date "2024.04.29"]
[Round "3.2"]
[White "De Jong, Lode"]
[Black "Groenewoud, Joel"]
[Result "0-1"]
[TimeControl "90min/40moves + 30min + 30sec/move"]
[WhiteElo "1587"]
[BlackElo "2030"]

1. d4 {[%clk 01:30:59]} Nf6 {[%clk 01:30:55]} {[%emt 00:00:05]} 2. c4 {[%clk
01:31:26]} {[%emt 00:00:03]} g6 {[%clk 01:31:22]} {[%emt 00:00:03]} 3. Nc3
{[%clk 01:31:52]} {[%emt 00:00:05]} Bg7 {[%clk 01:31:50]} {[%emt 00:00:02]} 4.
e4 {[%clk 01:32:17]} {[%emt 00:00:05]} d6 {[%clk 01:32:18]} {[%emt 00:00:02]} 5.
Nf3 {[%clk 01:32:42]} {[%emt 00:00:04]} O-O {[%clk 01:32:43]} {[%emt 00:00:05]}
6. Be2 {[%clk 01:33:10]} {[%emt 00:00:02]} e5 {[%clk 01:33:07]} {[%emt
00:00:06]} 7. O-O {[%clk 01:33:36]} {[%emt 00:00:04]} Nc6 {[%clk 01:33:28]}
{[%emt 00:00:10]} 8. d5 {[%clk 01:34:03]} {[%emt 00:00:03]} Ne7 {[%clk
01:33:50]} {[%emt 00:00:07]} 9. Ne1 {[%clk 01:34:28]} {[%emt 00:00:05]} Nd7
{[%clk 01:33:44]} {[%emt 00:00:36]} 10. Be3 {[%clk 01:34:51]} {[%emt 00:00:07]}
f5 {[%clk 01:34:01]} {[%emt 00:00:13]} 11. f3 {[%clk 01:35:06]} {[%emt
00:00:16]} f4 {[%clk 01:34:17]} {[%emt 00:00:14]} 12. Bf2 {[%clk 01:35:15]}
{[%emt 00:00:20]} g5 {[%clk 01:34:10]} {[%emt 00:00:37]} 13. a4 {[%clk
01:35:22]} {[%emt 00:00:23]} h5 {[%clk 01:31:10]} {[%emt 00:03:30]} 14. a5
{[%clk 01:35:14]} {[%emt 00:00:38]} Nf6 {[%clk 01:25:24]} {[%emt 00:06:15]} 15.
c5 {[%clk 01:33:23]} {[%emt 00:02:23]} g4 {[%clk 01:17:43]} {[%emt 00:08:11]}
16. cxd6 {[%clk 01:31:44]} {[%emt 00:02:10]} cxd6 {[%clk 01:17:56]} {[%emt
00:00:15]} 17. Nb5 {[%clk 01:31:48]} {[%emt 00:00:26]} Ng6 {[%clk 01:05:55]}
{[%emt 00:12:31]} 18. Nxa7 {[%clk 01:10:55]} {[%emt 00:21:23]} Rxa7 {[%clk
00:46:09]} {[%emt 00:20:17]} 19. Bxa7 {[%clk 01:10:14]} {[%emt 00:01:10]} g3
{[%clk 00:46:31]} {[%emt 00:00:08]} 20. Kh1 {[%clk 00:55:11]} {[%emt 00:15:33]}
Nh7 {[%clk 00:43:34]} {[%emt 00:03:27]} 21. Bg1 {[%clk 00:53:20]} {[%emt
00:02:21]} h4 {[%clk 00:39:13]} {[%emt 00:04:51]} 22. a6 {[%clk 00:46:27]}
{[%emt 00:07:23]} bxa6 {[%clk 00:38:01]} {[%emt 00:01:42]} 23. Bxa6 {[%clk
00:46:47]} {[%emt 00:00:11]} Bd7 {[%clk 00:34:30]} {[%emt 00:03:59]} 24. Qc2
{[%clk 00:36:39]} {[%emt 00:10:40]} h3 {[%clk 00:33:52]} {[%emt 00:01:07]} 25.
Rc1 {[%clk 00:35:09]} {[%emt 00:02:00]} Qf6 {[%clk 00:31:10]} {[%emt 00:03:12]}
26. hxg3 {[%clk 00:25:27]} {[%emt 00:10:12]} fxg3 {[%clk 00:31:00]} {[%emt
00:00:39]} 27. f4 {[%clk 00:24:55]} {[%emt 00:01:04]} Qh4 {[%clk 00:28:41]}
{[%emt 00:02:48]} 28. f5 {[%clk 00:22:20]} {[%emt 00:03:05]} Ng5 {[%clk
00:26:39]} {[%emt 00:02:32]} 29. gxh3 {[%clk 00:19:14]} {[%emt 00:03:36]} Qxh3+
{[%clk 00:25:13]} {[%emt 00:01:56]} 30. Bh2 {[%clk 00:19:36]} {[%emt 00:00:08]}
Nxe4 {[%clk 00:23:44]} {[%emt 00:01:59]} 31. Qg2 {[%clk 00:18:58]} {[%emt
00:01:08]} Qh6 {[%clk 00:19:23]} {[%emt 00:04:50]} 32. fxg6 {[%clk 00:11:43]}
{[%emt 00:07:47]} Rf2 {[%clk 00:16:03]} {[%emt 00:03:49]} 33. Rxf2 {[%clk
00:11:33]} {[%emt 00:00:40]} Nxf2+ {[%clk 00:16:24]} {[%emt 00:00:09]} 34. Kg1
{[%clk 00:11:47]} {[%emt 00:00:15]} Qxc1 {[%clk 00:12:04]} {[%emt 00:04:51]} 35.
Bxg3 {[%clk 00:10:11]} {[%emt 00:02:07]} Qxe1+ {[%clk 00:12:25]} {[%emt
00:00:08]} 36. Bf1 {[%clk 00:10:06]} {[%emt 00:00:35]} Nh3+ {[%clk 00:12:14]}
{[%emt 00:00:41]} 37. Kh2 {[%clk 00:08:49]} {[%emt 00:01:48]} Qe3 {[%clk
00:11:49]} {[%emt 00:00:54]} 38. Qc2 {[%clk 00:08:32]} {[%emt 00:00:48]} Qg1#
{[%clk 00:11:57]} {[%emt 00:00:22]} 0-1

[Event "NJSK 2024 C"]
[Site "Groningen, Netherlands"]
[Date "2024.04.29"]
[Round "3.3"]
[White "Grooten, Tommy"]
[Black "Terlouw, Wouter"]
[Result "0-1"]
[TimeControl "90min/40moves + 30min + 30sec/move"]
[WhiteElo "2018"]
[BlackElo "1961"]

1. d4 {[%clk 01:30:59]} {[%emt 00:38:46]} Nf6 {[%clk 01:30:55]} {[%emt
00:00:05]} 2. c4 {[%clk 01:31:25]} {[%emt 00:00:04]} e6 {[%clk 01:31:22]}
{[%emt 00:00:03]} 3. Nc3 {[%clk 01:31:52]} {[%emt 00:00:03]} Bb4 {[%clk
01:31:48]} {[%emt 00:00:05]} 4. f3 {[%clk 01:32:19]} {[%emt 00:00:03]} O-O
{[%clk 01:32:13]} {[%emt 00:00:05]} 5. e4 {[%clk 01:31:31]} {[%emt 00:01:17]}
d5 {[%clk 01:32:25]} {[%emt 00:00:19]} 6. e5 {[%clk 01:29:44]} {[%emt
00:02:16]} Nfd7 {[%clk 01:32:50]} {[%emt 00:00:06]} 7. a3 {[%clk 01:29:24]}
{[%emt 00:00:50]} Bxc3+ {[%clk 01:33:15]} {[%emt 00:00:05]} 8. bxc3 {[%clk
01:29:50]} {[%emt 00:00:04]} dxc4 {[%clk 01:33:41]} {[%emt 00:00:04]} 9. f4
{[%clk 01:27:45]} {[%emt 00:02:35]} b5 {[%clk 01:33:57]} {[%emt 00:00:13]} 10.
a4 {[%clk 01:26:45]} {[%emt 00:01:30]} a6 {[%clk 01:33:45]} {[%emt 00:00:42]}
11. axb5 {[%clk 01:25:34]} {[%emt 00:01:41]} Bb7 {[%clk 01:34:10]} {[%emt
00:00:06]} 12. bxa6 {[%clk 01:20:03]} {[%emt 00:06:01]} Nxa6 {[%clk 01:34:34]}
{[%emt 00:00:06]} 13. Nf3 {[%clk 01:17:28]} {[%emt 00:03:04]} Bd5 {[%clk
01:34:59]} {[%emt 00:00:05]} 14. Be2 {[%clk 01:15:37]} {[%emt 00:02:21]} c5
{[%clk 01:33:15]} {[%emt 00:02:15]} 15. O-O {[%clk 01:13:51]} {[%emt 00:02:15]}
Nc7 {[%clk 01:30:54]} {[%emt 00:02:51]} 16. Be3 {[%emt 00:10:04]} Nb5 {[%clk
01:27:01]} 17. Qc2 {[%clk 01:01:51]} {[%emt 00:07:18]} Qe7 {[%clk 01:24:14]}
{[%emt 00:03:17]} 18. Nd2 {[%clk 00:51:01]} {[%emt 00:11:20]} cxd4 {[%clk
01:21:52]} {[%emt 00:02:52]} 19. Bxd4 {[%clk 00:47:52]} {[%emt 00:03:39]} Nxd4
{[%clk 01:13:58]} {[%emt 00:08:24]} 20. cxd4 {[%clk 00:48:16]} {[%emt
00:00:06]} Qb4 {[%clk 01:08:10]} {[%emt 00:06:19]} 21. Nxc4 {[%clk 00:33:51]}
{[%emt 00:14:55]} Rxa1 {[%clk 01:00:01]} 22. Rxa1 {[%clk 00:34:05]} {[%emt
00:08:56]} Rc8 {[%clk 00:58:30]} {[%emt 00:02:00]} 23. Rb1 {[%clk 00:33:19]}
{[%emt 00:01:16]} Rxc4 {[%clk 00:56:46]} {[%emt 00:02:14]} 24. Bxc4 {[%clk
00:33:40]} {[%emt 00:00:10]} Qxc4 {[%clk 00:57:09]} {[%emt 00:00:07]} 25. Qxc4
{[%clk 00:34:07]} {[%emt 00:00:03]} Bxc4 {[%clk 00:57:32]} {[%emt 00:00:07]} 26.
Rc1 {[%clk 00:32:13]} {[%emt 00:02:24]} Bd5 {[%clk 00:57:10]} {[%emt 00:00:48]}
27. Rc8+ {[%clk 00:31:43]} {[%emt 00:01:03]} Nf8 {[%clk 00:57:35]} {[%emt
00:00:06]} 28. f5 {[%clk 00:31:45]} {[%emt 00:00:28]} exf5 {[%clk 00:57:27]}
{[%emt 00:00:38]} 29. Rd8 {[%clk 00:30:44]} {[%emt 00:01:31]} Bc4 {[%clk
00:57:26]} {[%emt 00:00:24]} 30. d5 {[%clk 00:30:22]} {[%emt 00:00:58]} g5
{[%clk 00:56:06]} {[%emt 00:01:50]} 31. Kf2 {[%clk 00:30:05]} {[%emt 00:00:47]}
Kg7 {[%clk 00:55:13]} {[%emt 00:01:23]} 32. Ke3 {[%clk 00:30:25]} {[%emt
00:00:10]} Bb5 {[%clk 00:52:43]} {[%emt 00:02:59]} 33. Kd4 {[%clk 00:29:51]}
{[%emt 00:01:05]} Bd7 {[%clk 00:53:01]} {[%emt 00:00:11]} 34. Kc5 {[%clk
00:27:52]} {[%emt 00:02:30]} f4 {[%clk 00:51:40]} {[%emt 00:01:52]} 35. Kd6
{[%clk 00:26:40]} {[%emt 00:01:42]} Bf5 {[%clk 00:51:32]} {[%emt 00:00:36]} 36.
Ra8 {[%clk 00:26:53]} {[%emt 00:00:18]} h5 {[%clk 00:47:25]} {[%emt 00:04:38]}
37. Ra7 {[%clk 00:25:14]} {[%emt 00:02:09]} h4 {[%clk 00:40:08]} {[%emt
00:07:47]} 38. e6 {[%clk 00:24:27]} {[%emt 00:01:17]} Nxe6 {[%clk 00:40:30]}
{[%emt 00:00:08]} 39. dxe6 {[%clk 00:24:54]} {[%emt 00:00:02]} Bxe6 {[%clk
00:40:52]} {[%emt 00:00:07]} 40. Ke5 {[%clk 00:24:54]} {[%emt 00:00:31]} h3
{[%clk 00:40:10]} {[%emt 00:01:12]} 41. gxh3 {[%clk 00:22:51]} {[%emt
00:02:33]} Bxh3 {[%clk 00:40:21]} {[%emt 00:00:20]} 42. Ra3 {[%clk 00:17:31]}
{[%emt 00:05:50]} f6+ {[%clk 00:40:10]} {[%emt 00:00:40]} 43. Ke4 {[%clk
00:17:20]} {[%emt 00:00:41]} Bg4 {[%clk 00:40:22]} {[%emt 00:00:17]} 44. Ra2
{[%clk 00:13:58]} {[%emt 00:03:54]} Kg6 {[%clk 00:40:22]} {[%emt 00:00:29]} 45.
h4 {[%clk 00:10:48]} {[%emt 00:03:39]} Bf5+ {[%clk 00:39:29]} {[%emt 00:01:24]}
46. Kf3 {[%clk 00:11:10]} {[%emt 00:00:08]} Be6 {[%clk 00:39:46]} {[%emt
00:00:12]} 47. Ra5 {[%clk 00:09:55]} {[%emt 00:01:46]} Kh5 {[%clk 00:39:23]}
{[%emt 00:00:53]} 48. hxg5 {[%clk 00:10:21]} {[%emt 00:00:04]} fxg5 {[%clk
00:39:39]} {[%emt 00:00:14]} 49. Re5 {[%clk 00:10:12]} {[%emt 00:00:39]} Bg4+
{[%clk 00:38:07]} {[%emt 00:02:03]} 50. Kf2 {[%clk 00:09:46]} {[%emt 00:00:55]}
Kh4 {[%clk 00:38:28]} {[%emt 00:00:09]} 51. Re1 {[%clk 00:09:14]} {[%emt
00:01:02]} Bh5 {[%clk 00:37:48]} {[%emt 00:01:08]} 52. Rg1 {[%clk 00:08:57]}
{[%emt 00:00:50]} g4 {[%clk 00:37:29]} {[%emt 00:00:48]} 53. Rh1+ {[%clk
00:09:23]} {[%emt 00:00:03]} Kg5 {[%clk 00:37:53]} {[%emt 00:00:06]} 54. Rg1
{[%clk 00:09:44]} {[%emt 00:00:10]} Bg6 {[%clk 00:37:55]} {[%emt 00:00:26]} 55.
Ra1 {[%clk 00:08:22]} {[%emt 00:01:54]} g3+ {[%clk 00:37:26]} {[%emt 00:00:59]}
56. Kg2 {[%clk 00:07:59]} {[%emt 00:00:53]} Kg4 {[%clk 00:36:53]} {[%emt
00:01:03]} 57. Ra4 {[%clk 00:08:20]} {[%emt 00:00:09]} Be8 {[%clk 00:36:39]}
{[%emt 00:00:44]} 58. Rc4 {[%clk 00:08:19]} {[%emt 00:00:31]} Bb5 {[%clk
00:36:53]} {[%emt 00:00:16]} 59. Rb4 {[%clk 00:08:38]} {[%emt 00:00:11]} Bc6+
{[%clk 00:36:38]} {[%emt 00:00:45]} 60. Kf1 {[%clk 00:08:41]} {[%emt 00:00:27]}
Kf5 {[%clk 00:35:09]} {[%emt 00:01:59]} 61. Rb6 {[%clk 00:06:32]} {[%emt
00:02:40]} Bd5 {[%clk 00:34:03]} {[%emt 00:01:30]} 62. Rb4 {[%clk 00:06:28]}
{[%emt 00:00:39]} f3 {[%clk 00:33:58]} {[%emt 00:00:35]} 63. Rd4 {[%clk
00:05:15]} {[%emt 00:01:41]} Be4 {[%clk 00:34:13]} {[%emt 00:00:15]} 64. Rd8
{[%clk 00:05:13]} {[%emt 00:00:34]} Kf4 {[%clk 00:34:28]} {[%emt 00:00:15]} 65.
Rf8+ {[%clk 00:05:25]} {[%emt 00:00:18]} Ke3 {[%clk 00:34:48]} {[%emt
00:00:10]} 66. Re8 {[%clk 00:04:31]} {[%emt 00:01:25]} g2+ {[%clk 00:35:01]}
{[%emt 00:00:17]} 67. Kg1 {[%clk 00:04:58]} {[%emt 00:00:03]} f2+ {[%clk
00:35:26]} {[%emt 00:00:04]} 68. Kh2 {[%clk 00:05:23]} {[%emt 00:00:04]} g1=Q+
{[%clk 00:35:51]} {[%emt 00:00:06]} 69. Kh3 {[%clk 00:05:47]} {[%emt 00:00:06]}
f1=Q {[%emt 00:00:10]} 70. Kh4 {[%clk 00:06:13]} {[%emt 00:00:03]} Qf4+ {[%clk
00:36:30]} {[%emt 00:00:12]} 71. Kh3 {[%clk 00:06:37]} {[%emt 00:00:06]} Qgg3
{[%clk 00:36:52]} {[%emt 00:00:09]} 0-1